[Event "*** SCC Grand Prix: Titled Tuesday Blitz"]
[Site "Chess.com"]
[Date "2020.09.08"]
[Round "2"]
[White "Chessbard1972"]
[Black "lacafi"]
[Result "0-1"]
[WhiteElo "2391"]
[BlackElo "2168"]
[TimeControl "180+1"]
[EndTime "10:19:50 PDT"]
[Termination "lacafi won on time"]

1. d4 {[%clk 0:03:00.9]} 1... f5 {[%clk 0:02:58.9]} 2. g3 {[%clk 0:02:59.3]}
2... Nf6 {[%clk 0:02:58.5]} 3. Bg2 {[%clk 0:02:59.1]} 3... g6 {[%clk 0:02:59.2]}
4. Nh3 {[%clk 0:02:58.3]} 4... Bg7 {[%clk 0:02:59.6]} 5. Nf4 {[%clk 0:02:58.1]}
5... O-O {[%clk 0:02:56.8]} 6. h4 {[%clk 0:02:56.4]} 6... d5 {[%clk 0:02:52.7]}
7. c4 {[%clk 0:02:53.6]} 7... c6 {[%clk 0:02:51.5]} 8. Qb3 {[%clk 0:02:48.2]}
8... e6 {[%clk 0:02:49.6]} 9. Nd2 {[%clk 0:02:37.8]} 9... Nbd7 {[%clk
0:02:37.5]} 10. Nf3 {[%clk 0:02:36.3]} 10... Ne4 {[%clk 0:02:33]} 11. Nxe6
{[%clk 0:02:31.6]} 11... Qf6 {[%clk 0:02:21]} 12. Nxf8 {[%clk 0:02:29.3]} 12...
Nxf8 {[%clk 0:02:18.1]} 13. Bf4 {[%clk 0:02:24.6]} 13... dxc4 {[%clk 0:02:16.2]}
14. Qxc4+ {[%clk 0:02:23.8]} 14... Be6 {[%clk 0:02:16.6]} 15. Qc2 {[%clk
0:02:20.5]} 15... Qe7 {[%clk 0:02:13.4]} 16. O-O {[%clk 0:02:18.9]} 16... h6
{[%clk 0:02:10.7]} 17. Be5 {[%clk 0:02:17.7]} 17... g5 {[%clk 0:02:08.6]} 18.
Bxg7 {[%clk 0:02:13.7]} 18... Qxg7 {[%clk 0:02:07.3]} 19. e3 {[%clk 0:02:12.6]}
19... Ng6 {[%clk 0:02:03.4]} 20. h5 {[%clk 0:02:07.6]} 20... Ne7 {[%clk
0:01:57.5]} 21. Ne5 {[%clk 0:02:07.4]} 21... Nf6 {[%clk 0:01:53.2]} 22. Bf3
{[%clk 0:01:57.2]} 22... g4 {[%clk 0:01:49.6]} 23. Bg2 {[%clk 0:01:55.4]} 23...
Nxh5 {[%clk 0:01:48.8]} 24. e4 {[%clk 0:01:51.4]} 24... f4 {[%clk 0:01:39.4]}
25. gxf4 {[%clk 0:01:50.5]} 25... Nxf4 {[%clk 0:01:38.5]} 26. Rad1 {[%clk
0:01:30.4]} 26... Rf8 {[%clk 0:01:27.3]} 27. Nd3 {[%clk 0:01:27.7]} 27... Neg6
{[%clk 0:01:18.3]} 28. Nxf4 {[%clk 0:01:26.6]} 28... Nxf4 {[%clk 0:01:17.8]} 29.
d5 {[%clk 0:01:25.3]} 29... cxd5 {[%clk 0:01:06]} 30. exd5 {[%clk 0:01:25]}
30... Bf5 {[%clk 0:01:06.3]} 31. Qd2 {[%clk 0:01:17.9]} 31... Nxg2 {[%clk
0:01:02.3]} 32. Kxg2 {[%clk 0:01:17.1]} 32... Be4+ {[%clk 0:01:02.9]} 33. Kg1
{[%clk 0:01:15]} 33... Qf6 {[%clk 0:00:38.8]} 34. Qe3 {[%clk 0:01:05.7]} 34...
Bf3 {[%clk 0:00:36.9]} 35. Qe6+ {[%clk 0:00:58.2]} 35... Qxe6 {[%clk 0:00:36.6]}
36. dxe6 {[%clk 0:00:58.1]} 36... Bxd1 {[%clk 0:00:37.4]} 37. Rxd1 {[%clk
0:00:58]} 37... Re8 {[%clk 0:00:33.8]} 38. Rd7 {[%clk 0:00:57.3]} 38... Rxe6
{[%clk 0:00:33.6]} 39. Rxb7 {[%clk 0:00:57.1]} 39... a6 {[%clk 0:00:28.2]} 40.
a4 {[%clk 0:00:55.5]} 40... h5 {[%clk 0:00:22.7]} 41. a5 {[%clk 0:00:53.4]}
41... h4 {[%clk 0:00:22]} 42. Rb6 {[%clk 0:00:53.4]} 42... Re2 {[%clk
0:00:20.6]} 43. b4 {[%clk 0:00:49.9]} 43... Rb2 {[%clk 0:00:16.8]} 44. Rg6+
{[%clk 0:00:49.1]} 44... Kh7 {[%clk 0:00:15.3]} 45. Rxg4 {[%clk 0:00:49.4]}
45... h3 {[%clk 0:00:15]} 46. Rf4 {[%clk 0:00:43.1]} 46... Kg6 {[%clk
0:00:13.9]} 47. Kh2 {[%clk 0:00:40.6]} 47... Kg5 {[%clk 0:00:12.8]} 48. Rc4
{[%clk 0:00:34.5]} 48... Rxf2+ {[%clk 0:00:12.5]} 49. Kxh3 {[%clk 0:00:33.8]}
49... Rb2 {[%clk 0:00:11.4]} 50. Kg3 {[%clk 0:00:31.3]} 50... Kf5 {[%clk
0:00:11.8]} 51. Kf3 {[%clk 0:00:31.3]} 51... Ke5 {[%clk 0:00:12.3]} 52. Ke3
{[%clk 0:00:31.5]} 52... Kd5 {[%clk 0:00:12.7]} 53. Rc5+ {[%clk 0:00:29]} 53...
Kd6 {[%clk 0:00:13.1]} 54. Rc4 {[%clk 0:00:25]} 54... Kd5 {[%clk 0:00:12.6]} 55.
Rd4+ {[%clk 0:00:24.9]} 55... Kc6 {[%clk 0:00:11.9]} 56. Kd3 {[%clk 0:00:24.8]}
56... Kb5 {[%clk 0:00:11]} 57. Kc3 {[%clk 0:00:24.6]} 57... Rb1 {[%clk
0:00:09.8]} 58. Rd5+ {[%clk 0:00:23.6]} 58... Kc6 {[%clk 0:00:10.3]} 59. Rc5+
{[%clk 0:00:21.3]} 59... Kb7 {[%clk 0:00:09.8]} 60. Rc4 {[%clk 0:00:18.8]} 60...
Rh1 {[%clk 0:00:08.2]} 61. Rd4 {[%clk 0:00:17.5]} 61... Rh3+ {[%clk 0:00:07.8]}
62. Kc4 {[%clk 0:00:17.1]} 62... Rh5 {[%clk 0:00:06.4]} 63. Rd5 {[%clk
0:00:15.5]} 63... Rh4+ {[%clk 0:00:05]} 64. Kc5 {[%clk 0:00:15.4]} 64... Rh7
{[%clk 0:00:05.5]} 65. Re5 {[%clk 0:00:13.4]} 65... Rg7 {[%clk 0:00:05.4]} 66.
Re6 {[%clk 0:00:12.9]} 66... Rg5+ {[%clk 0:00:03.5]} 67. Kc4 {[%clk 0:00:11.9]}
67... Rg4+ {[%clk 0:00:03.7]} 68. Kb3 {[%clk 0:00:10.7]} 68... Rg7 {[%clk
0:00:03.9]} 69. Rb6+ {[%clk 0:00:08.3]} 69... Ka7 {[%clk 0:00:03.9]} 70. Kc4
{[%clk 0:00:07.8]} 70... Rg4+ {[%clk 0:00:03.3]} 71. Kc5 {[%clk 0:00:07.6]}
71... Rg5+ {[%clk 0:00:03.8]} 72. Kd4 {[%clk 0:00:07.4]} 72... Rg4+ {[%clk
0:00:03.8]} 73. Ke5 {[%clk 0:00:07.3]} 73... Rg5+ {[%clk 0:00:03.9]} 74. Kf6
{[%clk 0:00:06.5]} 74... Rh5 {[%clk 0:00:03.8]} 75. Kg6 {[%clk 0:00:06]} 75...
Rd5 {[%clk 0:00:03.4]} 76. Kf6 {[%clk 0:00:05.4]} 76... Rh5 {[%clk 0:00:03.7]}
77. Ke7 {[%clk 0:00:03.6]} 77... Rh7+ {[%clk 0:00:03.1]} 78. Kd8 {[%clk
0:00:02.3]} 78... Rh8+ {[%clk 0:00:03.1]} 79. Kc7 {[%clk 0:00:01.7]} 79... Rh7+
{[%clk 0:00:03.7]} 80. Kc6 {[%clk 0:00:01.1]} 80... Rh6+ {[%clk 0:00:04]} 81.
Kc5 {[%clk 0:00:01.4]} 81... Rh5+ {[%clk 0:00:03.9]} 0-1

[Event "*** SCC Grand Prix: Titled Tuesday Blitz"]
[Site "Chess.com"]
[Date "2020.09.08"]
[Round "2"]
[White "esrosenberg"]
[Black "r31415"]
[Result "0-1"]
[WhiteElo "2238"]
[BlackElo "2456"]
[TimeControl "180+1"]
[EndTime "10:19:54 PDT"]
[Termination "r31415 won by checkmate"]

1. Nf3 {[%clk 0:03:00.9]} 1... g6 {[%clk 0:02:56.7]} 2. e4 {[%clk 0:02:59.8]}
2... d6 {[%clk 0:02:55.2]} 3. Bc4 {[%clk 0:02:57.5]} 3... Nf6 {[%clk 0:02:53.9]}
4. Qe2 {[%clk 0:02:56.1]} 4... Bg7 {[%clk 0:02:51.1]} 5. h3 {[%clk 0:02:53.4]}
5... O-O {[%clk 0:02:49.3]} 6. d3 {[%clk 0:02:53.8]} 6... Nc6 {[%clk 0:02:43.8]}
7. a3 {[%clk 0:02:53.6]} 7... h6 {[%clk 0:01:59.1]} 8. Nc3 {[%clk 0:02:49.7]}
8... Kh7 {[%clk 0:01:52.1]} 9. Bf4 {[%clk 0:02:40.9]} 9... e5 {[%clk 0:01:51.7]}
10. Be3 {[%clk 0:02:36.6]} 10... Qe7 {[%clk 0:01:41.8]} 11. g4 {[%clk
0:02:33.9]} 11... Ng8 {[%clk 0:01:37.4]} 12. Nd5 {[%clk 0:02:33.6]} 12... Qd8
{[%clk 0:01:36.7]} 13. c3 {[%clk 0:02:28]} 13... Be6 {[%clk 0:01:33.8]} 14.
O-O-O {[%clk 0:02:27.9]} 14... Na5 {[%clk 0:01:31.6]} 15. Ba2 {[%clk 0:02:27.8]}
15... c6 {[%clk 0:01:31]} 16. Nb4 {[%clk 0:02:22.1]} 16... Bxa2 {[%clk
0:01:29.5]} 17. Nxa2 {[%clk 0:02:23]} 17... Nb3+ {[%clk 0:01:02.5]} 18. Kb1
{[%clk 0:02:22.9]} 18... a5 {[%clk 0:00:54.2]} 19. a4 {[%clk 0:02:19.3]} 19...
b5 {[%clk 0:00:39.6]} 20. axb5 {[%clk 0:02:14.5]} 20... cxb5 {[%clk 0:00:40.5]}
21. Qc2 {[%clk 0:02:10.2]} 21... a4 {[%clk 0:00:36.8]} 22. h4 {[%clk 0:02:10.8]}
22... Qd7 {[%clk 0:00:33.3]} 23. Rdg1 {[%clk 0:02:09.8]} 23... Rfc8 {[%clk
0:00:31.7]} 24. Nb4 {[%clk 0:02:05.8]} 24... Ne7 {[%clk 0:00:31.9]} 25. Nd2
{[%clk 0:01:59.1]} 25... Nc5 {[%clk 0:00:31.1]} 26. f4 {[%clk 0:01:52.4]} 26...
exf4 {[%clk 0:00:29.2]} 27. Bxf4 {[%clk 0:01:52.9]} 27... d5 {[%clk 0:00:29.8]}
28. d4 {[%clk 0:01:49.7]} 28... Ne6 {[%clk 0:00:22.8]} 29. Be3 {[%clk
0:01:40.1]} 29... Bxd4 {[%clk 0:00:19.5]} 30. exd5 {[%clk 0:01:35.8]} 30... Bxe3
{[%clk 0:00:18.7]} 31. dxe6 {[%clk 0:01:36.2]} 31... Qxd2 {[%clk 0:00:17.8]} 32.
Qxd2 {[%clk 0:01:36.7]} 32... Bxd2 {[%clk 0:00:18.7]} 33. exf7 {[%clk 0:01:36]}
33... Rf8 {[%clk 0:00:18]} 34. Rd1 {[%clk 0:01:30.9]} 34... Bf4 {[%clk
0:00:15.7]} 35. Rhf1 {[%clk 0:01:25.8]} 35... g5 {[%clk 0:00:15.4]} 36. hxg5
{[%clk 0:01:25.6]} 36... hxg5 {[%clk 0:00:16.3]} 37. Nd3 {[%clk 0:01:22.4]}
37... Ng6 {[%clk 0:00:15.9]} 38. Rh1+ {[%clk 0:01:20.5]} 38... Kg7 {[%clk
0:00:16]} 39. Nxf4 {[%clk 0:01:19.8]} 39... Nxf4 {[%clk 0:00:16.9]} 40. Rhe1
{[%clk 0:01:15.6]} 40... Rxf7 {[%clk 0:00:06]} 41. Re5 {[%clk 0:01:15.8]} 41...
Kg6 {[%clk 0:00:06]} 42. Rxb5 {[%clk 0:01:12.9]} 42... a3 {[%clk 0:00:05]} 43.
Rd6+ {[%clk 0:01:09.6]} 43... Rf6 {[%clk 0:00:05]} 44. Rxf6+ {[%clk 0:01:04]}
44... Kxf6 {[%clk 0:00:05.9]} 45. Rb6+ {[%clk 0:01:04.5]} 45... Ke5 {[%clk
0:00:04.6]} 46. Rb5+ {[%clk 0:01:04]} 46... Kf6 {[%clk 0:00:05]} 47. Rf5+ {[%clk
0:01:03.5]} 47... Kg6 {[%clk 0:00:04.2]} 48. bxa3 {[%clk 0:01:04.2]} 48... Rxa3
{[%clk 0:00:03.4]} 49. Kb2 {[%clk 0:01:05]} 49... Ra6 {[%clk 0:00:03.6]} 50. Rb5
{[%clk 0:01:04.8]} 50... Re6 {[%clk 0:00:02.6]} 51. Kb3 {[%clk 0:01:04.5]} 51...
Re2 {[%clk 0:00:02.8]} 52. Rb6+ {[%clk 0:01:04.4]} 52... Kf7 {[%clk 0:00:01.9]}
53. Rb7+ {[%clk 0:01:04.5]} 53... Re7 {[%clk 0:00:02.1]} 54. Rb5 {[%clk
0:01:02.5]} 54... Kf6 {[%clk 0:00:02.5]} 55. Rf5+ {[%clk 0:01:02]} 55... Kg6
{[%clk 0:00:02.2]} 56. c4 {[%clk 0:01:01.9]} 56... Rb7+ {[%clk 0:00:02.6]} 57.
Kc3 {[%clk 0:00:58.9]} 57... Re7 {[%clk 0:00:03.5]} 58. c5 {[%clk 0:00:58.2]}
58... Re3+ {[%clk 0:00:02.5]} 59. Kd4 {[%clk 0:00:56.8]} 59... Rg3 {[%clk
0:00:03.4]} 60. Rf8 {[%clk 0:00:55.1]} 60... Rxg4 {[%clk 0:00:03.5]} 61. Rg8+
{[%clk 0:00:56]} 61... Kf7 {[%clk 0:00:03.2]} 62. Ra8 {[%clk 0:00:55.7]} 62...
Ne6+ {[%clk 0:00:03.5]} 63. Kd5 {[%clk 0:00:55.9]} 63... Rd4+ {[%clk 0:00:02.9]}
64. Ke5 {[%clk 0:00:55.9]} 64... Rc4 {[%clk 0:00:02.9]} 65. Ra7+ {[%clk
0:00:55.2]} 65... Kg6 {[%clk 0:00:03.1]} 66. Kxe6 {[%clk 0:00:55.3]} 66... Rxc5
{[%clk 0:00:03.6]} 67. Ra1 {[%clk 0:00:53.6]} 67... Rc2 {[%clk 0:00:02.8]} 68.
Rf1 {[%clk 0:00:52.2]} 68... Re2+ {[%clk 0:00:03.1]} 69. Kd5 {[%clk 0:00:52]}
69... g4 {[%clk 0:00:04]} 70. Kd4 {[%clk 0:00:52.3]} 70... Kg5 {[%clk
0:00:04.3]} 71. Kd3 {[%clk 0:00:52.7]} 71... Re8 {[%clk 0:00:04.6]} 72. Rf7
{[%clk 0:00:53.2]} 72... Kh4 {[%clk 0:00:04.5]} 73. Rh7+ {[%clk 0:00:53.4]}
73... Kg5 {[%clk 0:00:04.3]} 74. Rg7+ {[%clk 0:00:53.8]} 74... Kf4 {[%clk
0:00:04.9]} 75. Rf7+ {[%clk 0:00:54.3]} 75... Kg3 {[%clk 0:00:05.5]} 76. Rh7
{[%clk 0:00:54.6]} 76... Kf3 {[%clk 0:00:05.8]} 77. Rf7+ {[%clk 0:00:55]} 77...
Kg2 {[%clk 0:00:06.3]} 78. Kd2 {[%clk 0:00:54.2]} 78... g3 {[%clk 0:00:06.7]}
79. Rg7 {[%clk 0:00:53.3]} 79... Kh2 {[%clk 0:00:06.9]} 80. Rh7+ {[%clk
0:00:53.7]} 80... Kg1 {[%clk 0:00:07.4]} 81. Kd3 {[%clk 0:00:52.4]} 81... g2
{[%clk 0:00:07.8]} 82. Kd2 {[%clk 0:00:51.8]} 82... Re5 {[%clk 0:00:07.6]} 83.
Rh8 {[%clk 0:00:49.8]} 83... Kf2 {[%clk 0:00:08]} 84. Rf8+ {[%clk 0:00:49.9]}
84... Kg3 {[%clk 0:00:08.3]} 85. Rg8+ {[%clk 0:00:50.6]} 85... Kf3 {[%clk
0:00:08.6]} 86. Rf8+ {[%clk 0:00:50.8]} 86... Kg4 {[%clk 0:00:09]} 87. Rg8+
{[%clk 0:00:51.4]} 87... Rg5 {[%clk 0:00:09.1]} 88. Re8 {[%clk 0:00:50]} 88...
g1=Q {[%clk 0:00:09]} 89. Re4+ {[%clk 0:00:50.9]} 89... Kf5 {[%clk 0:00:09.1]}
90. Re2 {[%clk 0:00:51.3]} 90... Qd4+ {[%clk 0:00:08.8]} 91. Ke1 {[%clk
0:00:51.6]} 91... Rg1# {[%clk 0:00:08.6]} 0-1

[Event "*** SCC Grand Prix: Titled Tuesday Blitz"]
[Site "Chess.com"]
[Date "2020.09.08"]
[Round "2"]
[White "Colombiano07"]
[Black "Paladin61"]
[Result "1-0"]
[WhiteElo "2331"]
[BlackElo "2626"]
[TimeControl "180+1"]
[EndTime "10:20:02 PDT"]
[Termination "Colombiano07 won by checkmate"]

1. d4 {[%clk 0:03:00.9]} 1... Nf6 {[%clk 0:02:59.5]} 2. Bf4 {[%clk 0:02:46.2]}
2... g6 {[%clk 0:02:50.2]} 3. e3 {[%clk 0:02:31.8]} 3... Bg7 {[%clk 0:02:49.2]}
4. Nf3 {[%clk 0:02:30.1]} 4... O-O {[%clk 0:02:47.5]} 5. Be2 {[%clk 0:02:30]}
5... d6 {[%clk 0:02:44.6]} 6. O-O {[%clk 0:02:30.5]} 6... Nbd7 {[%clk
0:02:42.3]} 7. c3 {[%clk 0:02:29.9]} 7... Qe8 {[%clk 0:02:37.6]} 8. h3 {[%clk
0:02:29.5]} 8... e5 {[%clk 0:02:37.4]} 9. Bh2 {[%clk 0:02:30.4]} 9... b6 {[%clk
0:02:36.6]} 10. a4 {[%clk 0:02:29.4]} 10... a6 {[%clk 0:02:36.6]} 11. Na3 {[%clk
0:02:29.6]} 11... Bb7 {[%clk 0:02:36.5]} 12. Qb3 {[%clk 0:02:28.8]} 12... Rb8
{[%clk 0:02:20.6]} 13. Rfe1 {[%clk 0:02:26.1]} 13... Qe7 {[%clk 0:02:19.6]} 14.
Bc4 {[%clk 0:02:13.5]} 14... h6 {[%clk 0:02:15]} 15. dxe5 {[%clk 0:02:07.5]}
15... dxe5 {[%clk 0:02:12.4]} 16. Rad1 {[%clk 0:02:06.5]} 16... Nc5 {[%clk
0:02:03.8]} 17. Qc2 {[%clk 0:02:04.2]} 17... e4 {[%clk 0:01:39]} 18. Nd4 {[%clk
0:02:01.4]} 18... Rbc8 {[%clk 0:01:21.8]} 19. b4 {[%clk 0:02:00.6]} 19... Ncd7
{[%clk 0:01:21.7]} 20. Qe2 {[%clk 0:01:54.5]} 20... c5 {[%clk 0:01:21.2]} 21.
Ndc2 {[%clk 0:01:40.8]} 21... Ne5 {[%clk 0:00:55.4]} 22. Bxa6 {[%clk 0:01:34.3]}
22... Nd3 {[%clk 0:00:54.2]} 23. Bxb7 {[%clk 0:01:20.2]} 23... Qxb7 {[%clk
0:00:38.7]} 24. Rf1 {[%clk 0:01:20.4]} 24... Nd5 {[%clk 0:00:36.6]} 25. Nb5
{[%clk 0:01:13.6]} 25... Nxc3 {[%clk 0:00:34.1]} 26. Nxc3 {[%clk 0:01:12.6]}
26... Bxc3 {[%clk 0:00:34.6]} 27. bxc5 {[%clk 0:01:07.6]} 27... bxc5 {[%clk
0:00:29]} 28. f3 {[%clk 0:00:53]} 28... c4 {[%clk 0:00:29.1]} 29. Nd4 {[%clk
0:00:48.6]} 29... Qd5 {[%clk 0:00:28.2]} 30. Nb5 {[%clk 0:00:41.3]} 30... Be5
{[%clk 0:00:26.7]} 31. Bxe5 {[%clk 0:00:31.5]} 31... Qxe5 {[%clk 0:00:26.2]} 32.
fxe4 {[%clk 0:00:31.2]} 32... Ra8 {[%clk 0:00:24.8]} 33. Qc2 {[%clk 0:00:22.5]}
33... Qxe4 {[%clk 0:00:24.2]} 34. Nd6 {[%clk 0:00:19.5]} 34... Qxe3+ {[%clk
0:00:23.5]} 35. Kh1 {[%clk 0:00:20.1]} 35... Ne5 {[%clk 0:00:14.9]} 36. Nxc4
{[%clk 0:00:19.1]} 36... Qc5 {[%clk 0:00:14.6]} 37. Rf4 {[%clk 0:00:15.6]} 37...
Rfc8 {[%clk 0:00:13.6]} 38. Rc1 {[%clk 0:00:14.8]} 38... Qb4 {[%clk 0:00:11.5]}
39. Qe4 {[%clk 0:00:11]} 39... Nxc4 {[%clk 0:00:09.5]} 40. Rxc4 {[%clk
0:00:11.9]} 40... Rxc4 {[%clk 0:00:08.6]} 41. Qxc4 {[%clk 0:00:12.8]} 41... Qe1+
{[%clk 0:00:06.4]} 42. Kh2 {[%clk 0:00:12.6]} 42... Qe5 {[%clk 0:00:06.7]} 43.
Qxf7+ {[%clk 0:00:11.8]} 43... Kh8 {[%clk 0:00:06.5]} 44. Qf6+ {[%clk
0:00:12.1]} 44... Qxf6 {[%clk 0:00:06.1]} 45. Rxf6 {[%clk 0:00:13]} 45... Kg7
{[%clk 0:00:06.5]} 46. Rf4 {[%clk 0:00:13.1]} 46... g5 {[%clk 0:00:07.4]} 47.
Rb4 {[%clk 0:00:13.1]} 47... Rc8 {[%clk 0:00:05.7]} 48. a5 {[%clk 0:00:12.7]}
48... Ra8 {[%clk 0:00:04.9]} 49. Ra4 {[%clk 0:00:13.2]} 49... Ra6 {[%clk
0:00:04.7]} 50. Kg3 {[%clk 0:00:13.7]} 50... h5 {[%clk 0:00:04.8]} 51. Kf3
{[%clk 0:00:13.9]} 51... Kf6 {[%clk 0:00:05]} 52. Ke4 {[%clk 0:00:14.2]} 52...
Ke6 {[%clk 0:00:05.5]} 53. g4 {[%clk 0:00:12.8]} 53... h4 {[%clk 0:00:04.7]} 54.
Ra1 {[%clk 0:00:11.9]} 54... Kf6 {[%clk 0:00:04.3]} 55. Kd5 {[%clk 0:00:11.9]}
55... Kg7 {[%clk 0:00:03.3]} 56. Ra3 {[%clk 0:00:10.7]} 56... Kf6 {[%clk
0:00:03.4]} 57. Kc5 {[%clk 0:00:11.1]} 57... Ke5 {[%clk 0:00:03.4]} 58. Kb5
{[%clk 0:00:11.6]} 58... Ra8 {[%clk 0:00:03.1]} 59. a6 {[%clk 0:00:12.1]} 59...
Kd6 {[%clk 0:00:03]} 60. a7 {[%clk 0:00:10.3]} 60... Kc7 {[%clk 0:00:03]} 61.
Kc5 {[%clk 0:00:10.8]} 61... Kb7 {[%clk 0:00:03.2]} 62. Kd5 {[%clk 0:00:09.5]}
62... Rxa7 {[%clk 0:00:03.6]} 63. Rxa7+ {[%clk 0:00:08.3]} 63... Kxa7 {[%clk
0:00:03.8]} 64. Ke5 {[%clk 0:00:09.2]} 64... Kb6 {[%clk 0:00:04.5]} 65. Kf5
{[%clk 0:00:10.1]} 65... Kc5 {[%clk 0:00:04.4]} 66. Kxg5 {[%clk 0:00:11]} 66...
Kd4 {[%clk 0:00:04.7]} 67. Kxh4 {[%clk 0:00:11.9]} 67... Ke5 {[%clk 0:00:04.6]}
68. Kg5 {[%clk 0:00:12.8]} 68... Ke4 {[%clk 0:00:03.7]} 69. Kg6 {[%clk
0:00:13.7]} 69... Kf4 {[%clk 0:00:03.3]} 70. g5 {[%clk 0:00:13.4]} 70... Kg3
{[%clk 0:00:03.5]} 71. Kf7 {[%clk 0:00:12.7]} 71... Kh4 {[%clk 0:00:03.2]} 72.
g6 {[%clk 0:00:13.6]} 72... Kh5 {[%clk 0:00:03.4]} 73. g7 {[%clk 0:00:14.5]}
73... Kh6 {[%clk 0:00:03.7]} 74. g8=Q {[%clk 0:00:15.4]} 74... Kh5 {[%clk
0:00:03.2]} 75. Qg4+ {[%clk 0:00:15.1]} 75... Kh6 {[%clk 0:00:03.2]} 76. Qg6#
{[%clk 0:00:16]} 1-0

[Event "*** SCC Grand Prix: Titled Tuesday Blitz"]
[Site "Chess.com"]
[Date "2020.09.08"]
[Round "2"]
[White "NMZanette"]
[Black "NoboaKevin1999"]
[Result "1-0"]
[WhiteElo "2199"]
[BlackElo "2401"]
[TimeControl "180+1"]
[EndTime "10:20:22 PDT"]
[Termination "NMZanette won by checkmate"]

1. e4 {[%clk 0:03:00.9]} 1... e6 {[%clk 0:02:45.5]} 2. d4 {[%clk 0:02:59.3]}
2... d5 {[%clk 0:02:34.9]} 3. Nd2 {[%clk 0:02:59.1]} 3... c5 {[%clk 0:02:33.3]}
4. Ngf3 {[%clk 0:02:58.4]} 4... Nc6 {[%clk 0:02:30.3]} 5. Bb5 {[%clk 0:02:54.3]}
5... cxd4 {[%clk 0:02:26.3]} 6. Nxd4 {[%clk 0:02:53]} 6... Bd7 {[%clk 0:02:18]}
7. Bxc6 {[%clk 0:02:48.6]} 7... bxc6 {[%clk 0:02:18]} 8. exd5 {[%clk 0:02:47.6]}
8... cxd5 {[%clk 0:02:14.8]} 9. O-O {[%clk 0:02:45.8]} 9... Nf6 {[%clk
0:02:14.7]} 10. N2f3 {[%clk 0:02:39.3]} 10... Bd6 {[%clk 0:02:09]} 11. Re1
{[%clk 0:02:37.2]} 11... O-O {[%clk 0:02:06.6]} 12. Ne5 {[%clk 0:02:35.9]} 12...
Qc7 {[%clk 0:02:00.9]} 13. Ndf3 {[%clk 0:02:29.5]} 13... Ne4 {[%clk 0:01:55.7]}
14. Nxd7 {[%clk 0:02:26.2]} 14... Qxd7 {[%clk 0:01:51.2]} 15. c4 {[%clk
0:02:14.4]} 15... Rfe8 {[%clk 0:01:46.4]} 16. cxd5 {[%clk 0:02:13.3]} 16... exd5
{[%clk 0:01:46.2]} 17. Be3 {[%clk 0:02:12.2]} 17... Rab8 {[%clk 0:01:41.9]} 18.
Rb1 {[%clk 0:02:01.1]} 18... h6 {[%clk 0:01:33.4]} 19. Qd4 {[%clk 0:01:52.2]}
19... Bc5 {[%clk 0:01:28]} 20. Qd3 {[%clk 0:01:45.6]} 20... Bf8 {[%clk
0:01:18.2]} 21. Bd4 {[%clk 0:01:43.1]} 21... Qa4 {[%clk 0:01:11.4]} 22. h3
{[%clk 0:01:23.9]} 22... Qxa2 {[%clk 0:00:50.6]} 23. Ra1 {[%clk 0:01:22.6]}
23... Qb3 {[%clk 0:00:45.2]} 24. Qxb3 {[%clk 0:01:22.4]} 24... Rxb3 {[%clk
0:00:37.1]} 25. Rxa7 {[%clk 0:01:22.2]} 25... Re7 {[%clk 0:00:09.2]} 26. Ra8
{[%clk 0:01:17.4]} 26... Reb7 {[%clk 0:00:04]} 27. Rc1 {[%clk 0:01:09.3]} 27...
Rb8 {[%clk 0:00:04]} 28. Ra5 {[%clk 0:01:08]} 28... R3b5 {[%clk 0:00:03.5]} 29.
Ra7 {[%clk 0:01:02.2]} 29... R8b7 {[%clk 0:00:03.3]} 30. Ra8 {[%clk 0:01:00]}
30... Rb8 {[%clk 0:00:03.5]} 31. Rc8 {[%clk 0:00:59.4]} 31... Rxa8 {[%clk
0:00:03.2]} 32. Rxa8 {[%clk 0:00:58.8]} 32... Nd6 {[%clk 0:00:03.5]} 33. Ne5
{[%clk 0:00:55.6]} 33... Nf5 {[%clk 0:00:03.6]} 34. Be3 {[%clk 0:00:38.8]} 34...
d4 {[%clk 0:00:03.8]} 35. Bf4 {[%clk 0:00:35.9]} 35... Rd5 {[%clk 0:00:02.7]}
36. Nd3 {[%clk 0:00:34.3]} 36... g5 {[%clk 0:00:02.5]} 37. Bd2 {[%clk
0:00:33.7]} 37... Kg7 {[%clk 0:00:02.7]} 38. b4 {[%clk 0:00:28.7]} 38... Bd6
{[%clk 0:00:02.9]} 39. Ra6 {[%clk 0:00:27.8]} 39... Be7 {[%clk 0:00:03]} 40. Rb6
{[%clk 0:00:25.2]} 40... Nd6 {[%clk 0:00:03.4]} 41. Nc5 {[%clk 0:00:23.4]} 41...
Nc4 {[%clk 0:00:03.4]} 42. Rb7 {[%clk 0:00:16.2]} 42... Bxc5 {[%clk 0:00:03.6]}
43. bxc5 {[%clk 0:00:15.6]} 43... Nxd2 {[%clk 0:00:04.1]} 44. c6 {[%clk
0:00:16]} 44... Rc5 {[%clk 0:00:04.5]} 45. c7 {[%clk 0:00:16.1]} 45... Rc1+
{[%clk 0:00:04.7]} 46. Kh2 {[%clk 0:00:15.9]} 46... Nf1+ {[%clk 0:00:05.6]} 47.
Kg1 {[%clk 0:00:16.2]} 47... h5 {[%clk 0:00:05.9]} 48. c8=Q {[%clk 0:00:13.8]}
48... Rxc8 {[%clk 0:00:06.3]} 49. Kxf1 {[%clk 0:00:14.7]} 49... Rd8 {[%clk
0:00:06.4]} 50. Ke2 {[%clk 0:00:14.6]} 50... Kf6 {[%clk 0:00:06.6]} 51. Kd3
{[%clk 0:00:14.9]} 51... Ke5 {[%clk 0:00:06.9]} 52. Rb5+ {[%clk 0:00:15.3]}
52... Rd5 {[%clk 0:00:06.7]} 53. Rb7 {[%clk 0:00:14.8]} 53... f6 {[%clk
0:00:06.9]} 54. Rh7 {[%clk 0:00:14.7]} 54... h4 {[%clk 0:00:06.7]} 55. Re7+
{[%clk 0:00:15.1]} 55... Kf5 {[%clk 0:00:06.7]} 56. Re4 {[%clk 0:00:14.6]} 56...
Ra5 {[%clk 0:00:05]} 57. Rxd4 {[%clk 0:00:14]} 57... Ra2 {[%clk 0:00:05.4]} 58.
Ke3 {[%clk 0:00:14]} 58... Ra3+ {[%clk 0:00:05.6]} 59. Ke2 {[%clk 0:00:14.2]}
59... Ra2+ {[%clk 0:00:05.8]} 60. Kf3 {[%clk 0:00:13.6]} 60... Ke5 {[%clk
0:00:05.8]} 61. Re4+ {[%clk 0:00:13.3]} 61... Kf5 {[%clk 0:00:06.3]} 62. Re3
{[%clk 0:00:13]} 62... Ra4 {[%clk 0:00:06.6]} 63. g4+ {[%clk 0:00:12.4]} 63...
Kg6 {[%clk 0:00:06.9]} 64. Rb3 {[%clk 0:00:10.9]} 64... Rf4+ {[%clk 0:00:07.2]}
65. Kg2 {[%clk 0:00:10.4]} 65... Ra4 {[%clk 0:00:08.1]} 66. Rf3 {[%clk
0:00:09.6]} 66... Rf4 {[%clk 0:00:09]} 67. Rxf4 {[%clk 0:00:09.7]} 67... gxf4
{[%clk 0:00:09.1]} 68. Kf3 {[%clk 0:00:09.6]} 68... Kg5 {[%clk 0:00:09.5]} 69.
Ke4 {[%clk 0:00:10.1]} 69... f5+ {[%clk 0:00:09.8]} 70. gxf5 {[%clk 0:00:09.4]}
70... f3 {[%clk 0:00:10.1]} 71. Ke5 {[%clk 0:00:08.8]} 71... Kh6 {[%clk
0:00:08.9]} 72. Ke6 {[%clk 0:00:08.9]} 72... Kg7 {[%clk 0:00:08.7]} 73. Ke7
{[%clk 0:00:08.6]} 73... Kh7 {[%clk 0:00:06.4]} 74. f6 {[%clk 0:00:09.1]} 74...
Kg6 {[%clk 0:00:06.5]} 75. f7 {[%clk 0:00:09.4]} 75... Kh7 {[%clk 0:00:07.2]}
76. f8=R {[%clk 0:00:07.7]} 76... Kg6 {[%clk 0:00:08.1]} 77. Rxf3 {[%clk
0:00:07.8]} 77... Kh7 {[%clk 0:00:08.4]} 78. Rf4 {[%clk 0:00:07.1]} 78... Kh8
{[%clk 0:00:09.3]} 79. Rg4 {[%clk 0:00:07.2]} 79... Kh7 {[%clk 0:00:09.2]} 80.
Kf7 {[%clk 0:00:07.5]} 80... Kh6 {[%clk 0:00:09.5]} 81. f4 {[%clk 0:00:06.2]}
81... Kh5 {[%clk 0:00:09.4]} 82. f5 {[%clk 0:00:06.8]} 82... Kh6 {[%clk
0:00:09.3]} 83. Ke6 {[%clk 0:00:06.2]} 83... Kh5 {[%clk 0:00:09.4]} 84. f6
{[%clk 0:00:06.6]} 84... Kh6 {[%clk 0:00:09.6]} 85. f7 {[%clk 0:00:07.1]} 85...
Kh5 {[%clk 0:00:10.1]} 86. f8=R {[%clk 0:00:06.3]} 86... Kh6 {[%clk 0:00:09.9]}
87. Rh8# {[%clk 0:00:06.1]} 1-0